Cogmind - Beta 15 @@@ ROGUE MODE // 2025.06.27 @ 16:20:58 Player: Minty Result: Destroyed by Executioner with Helical Railgun Performance ------------- Evolutions (8) 4000 Regions Visited (17) 3400 Robots Destroyed (296) 1480 Value Destroyed (14103) 14103 Prototype IDs (149) 2980 Alien Tech Used (6) 1200 Bonus (6231) 6231 TOTAL SCORE: 33394 Bonus ------- High Alert Combat Kills 5040 Follower Combat Kills 351 Registered with UFD 300 Met Optimus in HQ 500 Met Optimus at Protoforge 1000 Friendly Fire -960 Cogmind --------- Core Integrity 0/1450 Matter 290/300 Energy 315/335 System Corruption 11% Temperature Cool (0) Movement Flying (110) Ox1 Location -2/Protoforge Parts ------- > --- POWER (2) -------- Improved Ion Engine Light Antimatter Reactor > --- PROPULSION (6) --- Xenon Bombardment Thruster Impulse Thruster Array Impulse Thruster Array Experimental Q-thruster > --- UTILITY (12) ----- Light Humpback Advanced Gravity Neutralizer Spectral Analyzer Improved Target Analyzer Experimental Target Analyzer Experimental Core Analyzer Experimental Core Analyzer Experimental Armor Integrity Analyzer Experimental Cloaking Device > --- WEAPON (3) ------- Z-bomb Delivery System > --- INVENTORY (25) --- Neutrino Core Light Quantum Reactor Cesium-ion Thruster Cesium-ion Thruster Compact Battery (92) Experimental Propulsion Shielding Experimental Propulsion Shielding Improved Heavy Laser Improved Heavy Laser Experimental Jetlance UFD Drillbomb Peak State ------------ > --- POWER ------------ Improved Quantum Reactor Hybrid Graviton Reactor > --- PROPULSION ------- Impulse Thruster Array Experimental Q-thruster Experimental Surge Thruster Experimental Surge Thruster Experimental Surge Thruster > --- UTILITY ---------- Experimental Heat Sink Advanced Gravity Neutralizer Spectral Analyzer Advanced Signal Interpreter Experimental Target Analyzer Experimental Target Analyzer Experimental Core Analyzer Experimental Core Analyzer Experimental Armor Integrity Analyzer Experimental Kinecellerator Experimental Reaction Control System Experimental Propulsion Shielding > --- WEAPON ----------- Concept XC Strikerail Concept XC Strikerail Concept XC Strikerail > --- INVENTORY -------- Experimental Heat Sink Deep Structural Scanner Hypervelocity Multirail Hypervelocity Multirail Z-bomb Delivery System [Rating: 223] Favorites ----------- Power Improved Deuterium Engine Engine Improved Deuterium Engine Power Core Fission Core Reactor Micro Antimatter Reactor Propulsion VTOL Module Treads Armored Treads Leg Improved Titanium Leg Wheel Compact Wheel Hover Unit Cooled Gravmag System Flight Unit VTOL Module Utility Targeting Computer Device Advanced Gravity Neutralizer Storage Large Storage Unit Processor Targeting Computer Hackware Hacking Suite Protection Improved Propulsion Shielding Artifact Phase Armor Weapon Cooled Pulse Rifle Energy Gun Cooled Pulse Rifle Ballistic Gun Concept XC Strikerail Ballistic Cannon Gauss Cannon Launcher Z-bomb Delivery System Impact Weapon Impact Mace Slashing Weapon Axe Piercing Weapon Lance Build | -11 -10 -10 -9 -8 -7 -7 -7 -7 -5 -5 -5 -4 -3 -3 -2 -2 -2 ------- Run | Yrd Mat Min Mat Mat Fac Sto Rec Scr Fac Was Fac Fac Res Tes Res Qua Frg Slots Evolved 16 | . . . 2 2 2 . . . 4 . . 2 2 . 2 . . Power 1 | . . . . . . . . . 1 . . . . . . . . Propulsion 4 | . . . . . 1 . . . 2 . . . . . 1 . . Utility 10 | . . . 2 2 . . . . 1 . . 2 2 . 1 . . Weapon 1 | . . . . . 1 . . . . . . . . . . . . Parts Attached 246 | . 6 . 12 14 26 31 1 11 8 9 1 8 22 6 14 13 64 Power 27 | . . . 3 . 3 2 . 1 2 1 . 2 1 . 3 2 7 Engine 7 | . . . 3 . 1 2 . . . . . . . . . . 1 Core 7 | . . . . . 2 . . 1 2 . . 1 . . . . 1 Reactor 13 | . . . . . . . . . . 1 . 1 1 . 3 2 5 Propulsion 53 | . 2 . 1 5 7 12 . 3 1 2 . . 4 . 1 2 13 Treads 12 | . 2 . 1 . 6 3 . . . . . . . . . . . Leg 6 | . . . . 2 . 4 . . . . . . . . . . . Wheel 7 | . . . . 3 . 4 . . . . . . . . . . . Hover 2 | . . . . . 1 1 . . . . . . . . . . . Flight 26 | . . . . . . . . 3 1 2 . . 4 . 1 2 13 Utility 98 | . 2 . 5 5 5 7 . 7 2 4 1 4 8 2 8 5 33 Device 32 | . 2 . . 3 1 1 . 3 2 2 . 2 4 1 4 . 7 Storage 10 | . . . 2 . . 1 . 1 . . . 1 . . . . 5 Processor 27 | . . . 3 1 2 1 . 2 . . . . 2 . 2 2 12 Hackware 10 | . . . . . 1 1 . . . . 1 1 2 1 2 1 . Protection 17 | . . . . 1 1 3 . 1 . 2 . . . . . . 9 Artifact 2 | . . . . . . . . . . . . . . . . 2 . Weapon 68 | . 2 . 3 4 11 10 1 . 3 2 . 2 9 4 2 4 11 Energy Gun 34 | . 2 . 2 4 6 7 1 . 2 1 . 1 3 2 1 . 2 Energy Cannon . | . . . . . . . . . . . . . . . . . . Ballistic Gun 14 | . . . 1 . . 1 . . 1 . . . 1 1 1 2 6 Ballistic Cannon 2 | . . . . . 1 . . . . 1 . . . . . . . Launcher 7 | . . . . . 4 1 . . . . . . 1 1 . . . Special Weapon . | . . . . . . . . . . . . . . . . . . Impact Weapon 5 | . . . . . . 1 . . . . . . 3 . . 1 . Slashing Weapon 3 | . . . . . . . . . . . . 1 . . . 1 1 Piercing Weapon 3 | . . . . . . . . . . . . . 1 . . . 2 Special Melee Weapon . | . . . . . . . . . . . . . . . . . . Unidentified Prototypes 50 | . . . 2 1 1 5 1 . 1 1 . 3 5 5 2 9 14 Corrupted Parts 1 | . . . . . . . . . . . . . . . . . 1 System Corruption 5 | . . . . . . . . . . . . . . . . . 5 Parts Lost 58 | . . . 1 7 8 11 . . 1 . . . 2 . 1 3 24 Power 6 | . . . . 2 . 2 . . . . . . . . . . 2 Propulsion 15 | . . . . 3 2 4 . . 1 . . . . . 1 . 4 Utility 20 | . . . 1 1 3 . . . . . . . 2 . . 2 11 Weapon 17 | . . . . 1 3 5 . . . . . . . . . 1 7 Highest Loss Streak 9 | . . . 1 4 2 9 . . 1 . . . 1 . 1 2 5 To Critical Strikes 4 | . . . . . . . . . . . . . . . . . 4 Average Backups 9 | . 7 8 7 13 14 13 15 14 4 5 5 4 4 5 4 4 4 Power 1 | . 1 1 . 1 2 1 1 . . 1 . 1 1 1 1 . . Propulsion . | . 1 . . . . . 1 1 . . . . . . . . . Utility 3 | . 2 5 3 4 7 6 7 7 1 2 2 2 1 . . . 1 Weapon 3 | . 2 2 4 7 4 4 4 4 1 2 1 1 2 3 3 3 2 Tool/Special . | . . . . . . . . . . . . . . . . . . Unused Backups 45 | . 7 . 4 11 5 4 1 7 . 1 . . . . 4 . 1 Power 5 | . . . 2 . 1 1 . . . . . . . . 1 . . Propulsion 2 | . . . . . 1 1 . . . . . . . . . . . Utility 25 | . . . 2 6 3 2 1 6 . 1 . . . . 3 . 1 Weapon 12 | . 7 . . 5 . . . . . . . . . . . . . Tool/Special 1 | . . . . . . . . 1 . . . . . . . . . Average Slot Usage (%) 93 | . 93 100 99 85 97 96 100 98 82 94 96 96 97 100 94 90 84 Engine 3 | . 14 14 11 8 4 3 7 6 . . . . . . . . . Core 1 | . . . . . 2 3 . . 9 6 5 4 1 . . . . Reactor 2 | . . . . . . . . . . 3 5 5 6 9 8 8 6 Treads 6 | . 17 28 22 3 21 6 . . . . . . . . . . . Leg 3 | . 10 . . . . 9 23 21 . . . . . . . . . Wheel 1 | . . . . 9 . 3 . . . . . . . . . . . Flight 10 | . . . . . . . . 1 23 25 29 26 23 23 20 21 19 Device 12 | . 8 14 8 13 3 6 7 7 19 21 23 21 23 28 23 20 11 Storage 4 | . 14 14 11 9 7 6 7 6 . . . . . . . . 1 Processor 20 | . . . 23 19 28 24 23 22 12 11 11 10 9 9 10 9 28 Hackware 3 | . . . . . . 1 . . . . 4 10 10 10 16 19 1 Protection 3 | . . . . 2 3 4 7 7 6 6 . 4 4 2 . . 1 Energy Gun 11 | . 28 28 22 17 20 18 15 22 2 12 13 8 1 . . . . Ballistic Gun 2 | . . . . . . 1 6 . . . . . . . 3 2 7 Peak Build Rating 223 | . 12 12 19 27 44 60 61 67 74 83 82 92 120 132 155 185 223 Average Rating 87 | . 9 12 15 19 36 46 57 61 62 73 79 83 100 121 146 161 184 On Entrance 63 | 6 6 12 12 19 24 40 57 61 44 58 78 80 87 120 129 148 170 Naked Turns . | . . . . . . . . . . . . . . . . . . Heaviest Build 98 | 14 18 17 34 37 45 51 45 65 25 33 33 35 42 43 66 90 98 Greatest Support 84 | 20 40 40 43 43 60 84 60 60 25 33 33 36 45 45 57 59 61 Greatest Overweight (x) 11 | . . . . 11 4 7 . 5 1 . . . 1 . 1 2 1 Average Overweight (x) . | . . . . 1 . . . . . . . . . . . . . Largest Inventory Capacity 25 | . 8 8 15 15 15 15 15 20 5 5 5 5 5 5 5 5 25 Average Capacity 11 | . 8 8 9 15 15 14 15 14 5 5 5 5 5 5 5 5 12 Most Carried 25 | . 8 8 12 15 15 15 15 16 5 5 5 5 5 5 5 5 25 Average Carried 10 | . 7 8 7 13 14 13 14 14 4 4 4 4 4 4 4 4 8 Final Capacity 25 | 8 8 8 15 15 15 15 15 5 5 5 5 5 5 5 5 5 25 Final Carried 20 | 6 8 8 12 14 15 15 15 5 5 5 5 5 5 5 4 5 20 Class Distribution -------------------- 27% | Gunner 15% | Mutant 14% | Hacker-Ninja 12% | Scavenger-Sprinter 9% | Scavenger-Gunner 5% | Scavenger-Mutant 5% | Scout Dominant Class ---------------- Mutant | -10/Materials Mutant | -10/Mines Mutant | -9/Materials Scavenger-Mutant | -8/Materials Gunner | -7/Factory Gunner | -7/Storage Gunner | -7/Recycling Gunner | -7/Scraptown Scout | -5/Factory Scavenger-Scout | -5/Waste Scout | -5/Factory Scavenger-Ninja | -4/Factory Hacker-Ninja | -3/Research Hacker-Ninja | -3/Testing Hacker-Ninja | -2/Research Hacker-Ninja | -2/Quarantine Scavenger-Sprinter | -2/Protoforge Resources | -11 -10 -10 -9 -8 -7 -7 -7 -7 -5 -5 -5 -4 -3 -3 -2 -2 -2 ----------- Run | Yrd Mat Min Mat Mat Fac Sto Rec Scr Fac Was Fac Fac Res Tes Res Qua Frg Matter Collected 8710 | 200 60 . 138 185 329 907 38 10 345 130 40 46 466 143 750 20 4903 Remotely 114 | . . . . 100 14 . . . . . . . . . . . . Salvage Created 14502 | . 284 . 466 1094 1941 1519 20 . 409 . 131 220 541 371 1204 197 6105 Parts 654 | . 10 . 20 67 97 67 7 . 10 . 6 9 14 12 47 5 283 Haulers Intercepted 16 | . 1 . 1 3 1 3 . . 2 . 1 1 2 . 1 . . Recyclers Shooed 6 | . . . . . 1 1 . . 3 . . . . . 1 . . Parts Field Recycled . | . . . . . . . . . . . . . . . . . . Retrieved Matter . | . . . . . . . . . . . . . . . . . . Parts Self-Destructed . | . . . . . . . . . . . . . . . . . . Prevented . | . . . . . . . . . . . . . . . . . . Kills | -11 -10 -10 -9 -8 -7 -7 -7 -7 -5 -5 -5 -4 -3 -3 -2 -2 -2 ------- Run | Yrd Mat Min Mat Mat Fac Sto Rec Scr Fac Was Fac Fac Res Tes Res Qua Frg Combat Hostiles Destroyed 191 | . 7 . 8 14 30 25 . . 1 . . . 5 . 4 2 95 Melee 5 | . . . . . . . . . . . . . 1 . . 2 2 Guns 143 | . 7 . 8 12 12 21 . . 1 . . . . . 4 . 78 Cannons 5 | . . . . . 3 2 . . . . . . . . . . . AOE 32 | . . . . 1 13 1 . . . . . . 3 . . . 14 Classes Destroyed 26 | . 6 . 1 3 3 . . . . . . . . 1 2 . 10 Worker 27 | . 1 . 1 4 10 3 . . . . 1 . 2 2 3 . . Builder 12 | . . . . 3 3 2 1 . . . . 2 . 1 . . . Tunneler 3 | . . . . . 1 . . . . . . . . . 2 . . Hauler 18 | . 1 . 1 3 1 3 . . 2 . 1 1 2 . 1 . 2 Recycler 21 | . 1 . 2 4 7 1 . . 1 . . . 1 1 3 . . Mechanic 4 | . . . . 1 2 . . . . . . . . . . . 1 Operator 7 | . 1 . . . 2 1 . . . . 1 . . 1 . 1 . Drone 11 | . . . . . . . . . . . . . . . . . 11 Watcher 8 | . . . . . 1 . . . 1 . . 1 2 1 1 . 1 Swarmer 32 | . 3 . 4 8 4 4 . . . . . . 4 . . . 5 Saboteur 2 | . . . . . . . . . . . . . . . . . 2 Grunt 54 | . 4 . 3 5 13 12 . . . . . . 1 . . . 16 Brawler 5 | . . . . . . . . . . . . . . . . . 5 Duelist 2 | . . . . . . . . . . . . . . . . . 2 Protector 1 | . . . . . . . . . . . . . . . . . 1 Researcher 4 | . . . . . . . . . . . . . . 4 . . . Sentry 20 | . . . 1 . 5 6 . . . . . . . . 3 . 5 Hunter 18 | . . . . 1 3 . . . 1 . . . . . . 2 11 Programmer 9 | . . . . . 5 3 . . . . . . . . . . 1 Behemoth 1 | . . . . . . . . . . . . . . . 1 . . Hotshot 9 | . . . . . . . . . . . . . . . . . 9 Decapitator 4 | . . . . . . . . . . . . . . . . . 4 Immortal 3 | . . . . . . . . . . . . . . . . . 3 Overlord 1 | . . . . . . . . . . . . . . . . . 1 Striker 5 | . . . . . . . . . . . . . . . . . 5 Executioner 13 | . . . . . . . . . . . . . . . . . 13 Alpha 7 1 | . . . . . . . . . . . . . . . . . 1 Scrapoid 1 | . . . . . . . . . . . . . . . 1 . . Surgeon 2 | . . . . . . . . . . . . 2 . . . . . Best Kill Streak 19 | . 3 . 4 7 12 8 1 . 1 . 2 2 5 6 2 2 19 Combat Bots Only 19 | . 3 . 4 5 4 7 . . 1 . . . 4 . 2 1 19 Max Kills in Single Turn 11 | . 2 . 2 1 11 2 1 . 1 . 2 4 3 2 1 1 4 Gunslinging 1 | . . . 1 . . . . . . . . . . . . . 1 Exploded 3 | . . . . 1 3 1 . . . . . . 2 . . . 2 Melee 1 | . . . . . . . . . . . . . 1 . . 1 1 Uniques/NPCs Destroyed . | . . . . . . . . . . . . . . . . . . Combat | -11 -10 -10 -9 -8 -7 -7 -7 -7 -5 -5 -5 -4 -3 -3 -2 -2 -2 -------- Run | Yrd Mat Min Mat Mat Fac Sto Rec Scr Fac Was Fac Fac Res Tes Res Qua Frg Hostile Shots Fired 1289 | . 66 . 56 65 323 295 . . 9 . . 3 35 1 17 48 371 Missed 508 | . 17 . 18 12 130 102 . . 2 . . . 22 . 11 19 175 Hits 781 | . 49 . 38 53 193 193 . . 7 . . 3 13 1 6 29 196 Projectile 781 | . 49 . 38 53 193 193 . . 7 . . 3 13 1 6 29 196 AOE 3 | . . . . . . . . . 2 . . . . . . . 1 Critical Strikes 20 | . . . . . 2 1 . . 1 . . . 1 . . 3 12 Actively Blocked 2 | . . . . . . . . . . . . . 1 . . . 1 Part Disruptions 4 | . . . . . 3 1 . . . . . . . . . . . Actively Blocked 1 | . . . . . 1 . . . . . . . . . . . . Damage Taken 12742 | . 445 . 381 671 2369 1970 . . 228 3 . 98 260 . 169 590 5558 Core 2373 | . 71 . 70 138 265 266 . . 53 . . 25 30 . 60 48 1347 Absorbed by Shields 73 | . 36 . . . 19 . . . . . . 18 . . . . . Redirected to Shielding 897 | . . . . . 131 . . . 66 . . 14 41 . . . 645 Regen/Repaired (Parts) 507 | . . . . . 292 . . . . 149 . . . . . 66 . Core Remaining (%) 79 | 100 . 71 82 74 . . . 24 . . 94 97 . 97 . . . Volleys Fired 462 | . 35 . 23 45 67 74 4 . 16 3 5 3 3 7 25 2 150 Largest 3 | . 2 . 2 2 3 3 3 . 2 2 3 2 1 1 1 1 3 Hottest 185 | . 130 . 130 112 180 165 147 . 185 80 185 105 39 40 50 38 132 Shots Fired 1032 | . 70 . 46 88 179 178 13 . 21 6 13 5 3 7 25 2 376 Gun 981 | . 70 . 46 88 164 163 13 . 21 6 13 5 . 6 23 2 361 Cannon 23 | . . . . . 8 15 . . . . . . . . . . . Launcher 28 | . . . . . 7 . . . . . . . 3 1 2 . 15 Special . | . . . . . . . . . . . . . . . . . . Kinetic 418 | . . . . . 8 25 4 . . . . . . . 18 2 361 Thermal 417 | . 70 . 46 40 110 107 9 . 11 6 13 5 . . . . . Explosive 28 | . . . . . 7 . . . . . . . 3 1 2 . 15 Electromagnetic 169 | . . . . 48 54 46 . . 10 . . . . 6 5 . . Robot Hit Streak 49 | . 6 . 10 19 20 49 6 . 18 4 6 . 1 2 9 . 44 Robot Miss Streak 6 | . 4 . 5 3 3 5 2 . 1 1 1 1 3 1 1 . 6 Penetration Max 2 | . . . . . 1 . . . . . . . . . 2 . 2 Secondary Targets 31 | . 1 . 2 3 2 5 . . . . . . . . . . 18 Max Gunslinging Chain 2 | . 1 . 1 1 1 1 . . . . . . . . . . 2 Shots Hit Robots 830 | . 37 . 31 71 137 134 8 . 21 5 10 4 16 13 30 16 297 Core Hits 534 | . 14 . 15 39 82 91 4 . 17 3 5 7 16 8 24 2 207 Critical Kills 66 | . . . . . . . . . . . . . . 1 6 1 58 Critical Parts Destroyed 68 | . . . . . . 2 . . . . . . 1 1 7 1 56 Critical Strikes 176 | . 4 . 1 3 5 8 . . 1 . . 1 2 2 20 4 125 Burn 17 | . 4 . 1 3 3 6 . . . . . . . . . . . Destroy 138 | . . . . . . . . . . . . . . . 17 . 121 Blast 2 | . . . . . 2 . . . . . . . . . . . . Corrupt 1 | . . . . . . . . . 1 . . . . . . . . Smash 9 | . . . . . . 2 . . . . . . 1 2 2 2 . Sever 3 | . . . . . . . . . . . . 1 . . . 2 . Impale 6 | . . . . . . . . . . . . . 1 . 1 . 4 Melee Attacks 129 | . . . . . . 3 . . . . . 15 24 15 22 30 20 Kinetic 2 | . . . . . . . . . . . . . . . . . 2 Impact 42 | . . . . . . 3 . . . . . . 6 5 8 10 10 Slashing 38 | . . . . . . . . . . . . 15 8 3 . 12 . Piercing 47 | . . . . . . . . . . . . . 10 7 14 8 8 Sneak Attacks 23 | . . . . . . . . . . . . 2 4 5 8 1 3 Combat Hostiles 1 | . . . . . . . . . . . . 1 . . . . . Follow-up Attacks 3 | . . . . . . . . . . . . . 2 . . 1 . Damage Inflicted 33694 | . 594 14 524 1476 5540 3267 128 . 680 78 291 787 1327 1268 1259 1214 15247 Guns 17682 | . 588 . 524 1251 2204 2706 109 . 680 78 291 . . 8 234 . 9009 Cannons 503 | . . . . . 249 254 . . . . . . . . . . . Explosions 10632 | . . . . 217 3016 163 . . . . . 564 376 503 71 . 5722 Melee 4759 | . . . . . . 144 . . . . . 223 951 757 954 1214 516 Ramming 118 | . 6 14 . 8 71 . 19 . . . . . . . . . . Kinetic 9885 | . . . . . 249 301 33 . . . . . . . 226 . 9076 Thermal 9235 | . 588 . 524 743 3799 2132 76 . 443 78 291 447 . 43 71 . . Explosive 7516 | . . . . . 883 . . . . . . 75 376 460 . . 5722 Electromagnetic 2248 | . . . . 725 538 690 . . 237 . . 42 . 8 8 . . Impact 1570 | . . . . . . 144 . . . . . . 220 530 383 293 . Slashing 1371 | . . . . . . . . . . . . 223 174 128 . 846 . Piercing 1751 | . . . . . . . . . . . . . 557 99 571 75 449 Highest Corruption 11 | . . . 3 5 7 10 10 . 2 2 2 . 2 2 . . 11 Average Corruption 5 | . . . 3 4 4 7 10 . 2 2 2 . 2 2 . . 6 Corruption Purged . | . . . . . . . . . . . . . . . . . . Corruption Blocked . | . . . . . . . . . . . . . . . . . . Effects 163 | . . . 2 4 36 47 9 . 3 2 1 . 2 4 . . 53 Message Errors 35 | . . . 1 2 4 5 1 . 2 1 . . . 2 . . 17 Matter Fused 30 | . . . . . 7 10 3 . 1 . . . . . . . 9 Heat Flow Errors 22 | . . . . . 6 10 2 . . . . . . . . . 4 Energy Discharges 19 | . . . . . 3 7 1 . . 1 . . 1 . . . 6 Parts Rejected 2 | . . . . . . . . . . . 1 . . . . . 1 Parts Fused 1 | . . . . . 1 . . . . . . . . . . . . Data Loss (minor) 19 | . . . 1 2 8 4 . . . . . . 1 1 . . 2 Data Loss (major) 11 | . . . . . 4 2 1 . . . . . . . . . 4 Misfires 5 | . . . . . 1 3 1 . . . . . . . . . . Alerts 8 | . . . . . 1 2 . . . . . . . 1 . . 4 Misdirections 4 | . . . . . . . . . . . . . . . . . 4 Weapon Failures 7 | . . . . . 1 4 . . . . . . . . . . 2 Overload Shots 9 | . . . . . 5 4 . . . . . . . . . . . Effects 3 | . . . . . 2 1 . . . . . . . . . . . Energy Bleed 1 | . . . . . 1 . . . . . . . . . . . . Heat Surge 2 | . . . . . 1 1 . . . . . . . . . . . Overflow Damage 2643 | . . . . . 520 114 . . . . . 176 345 399 590 269 230 Projectiles . | . . . . . . . . . . . . . . . . . . Explosions 926 | . . . . . 520 . . . . . . 176 . . . . 230 Melee 1717 | . . . . . . 114 . . . . . . 345 399 590 269 . Knockbacks 11 | . . . . . 1 4 . . . . . . 1 2 1 2 . Impact 7 | . . . . . . 1 . . . . . . 1 2 1 2 . Kinetic 3 | . . . . . 1 2 . . . . . . . . . . . Secondary 1 | . . . . . . 1 . . . . . . . . . . . Self-Inflicted Damage 488 | . . . . 63 399 26 . . . . . . . . . . . Shots 10 | . . . . 2 7 1 . . . . . . . . . . . Rammed 13 | . . 5 1 1 6 . . . . . . . . . . . . Targets Rammed 17 | . 1 5 1 1 8 . 1 . . . . . . . . . . Kicked 1 | . . . . . . . 1 . . . . . . . . . . Crushed 3 | . 1 . . . 2 . . . . . . . . . . . . Highest Temperature 437 | . 351 . 135 33 261 437 313 . 381 104 385 48 18 35 99 . 176 Average Temperature 62 | . 142 . 35 6 48 100 108 . 136 41 146 11 7 9 12 . 58 Received Heat Transfer 2006 | . 131 . 75 162 429 675 . . 24 . . 9 60 . 36 . 405 Effects 8 | . 1 . . . . 3 . . . . 4 . . . . . . Shutdowns 1 | . . . . . . 1 . . . . . . . . . . . Interference 4 | . 1 . . . . . . . . . 3 . . . . . . Matter Decay 2 | . . . . . . 2 . . . . . . . . . . . Short Circuit 1 | . . . . . . . . . . . 1 . . . . . . Siege Activations . | . . . . . . . . . . . . . . . . . . Martial Activations . | . . . . . . . . . . . . . . . . . . Shielding Activations . | . . . . . . . . . . . . . . . . . . Robots Disrupted 1 | . . . . . . 1 . . . . . . . . . . . Combat Hostiles 1 | . . . . . . 1 . . . . . . . . . . . Robots Corrupted 8 | . . . . 1 . 1 . . . . . . 3 2 1 . . Combat Hostiles 3 | . . . . 1 . 1 . . . . . . 1 . . . . Parts Fried 33 | . . . . 5 2 4 . . 5 . . . 7 9 1 . . Impact Corruptions 21 | . . . . . . 2 . . . . . . 5 7 6 1 . Robots Melted 2 | . . . . . 2 . . . . . . . . . . . . Combat Hostiles 2 | . . . . . 2 . . . . . . . . . . . . Parts Melted 32 | . 5 . 1 1 11 6 . . 5 . 2 . . . 1 . . Heat Transferred 15211 | . 1813 . 1221 1669 4695 3374 222 . 1025 222 570 300 . 50 50 . . Parts Sabotaged . | . . . . . . . . . . . . . . . . . . Parts Stolen . | . . . . . . . . . . . . . . . . . . Parts Stripped 12 | . . . . . . . . . . . . . . . . . 12 Power Chain Reactions 16 | . . . . 5 7 2 . . . . . . . 1 1 . . Alert | -11 -10 -10 -9 -8 -7 -7 -7 -7 -5 -5 -5 -4 -3 -3 -2 -2 -2 ------- Run | Yrd Mat Min Mat Mat Fac Sto Rec Scr Fac Was Fac Fac Res Tes Res Qua Frg Maximum Alert Level 5 | . . . . 1 3 3 1 . . . . 2 2 1 . . 5 Low Security (%) 46 | . 100 100 100 82 48 . 14 . 100 100 100 13 . 89 100 100 4 Level 1 14 | . . . . 17 33 . 85 . . . . 20 64 10 . . 5 Level 2 17 | . . . . . . 94 . . . . . 65 35 . . . 10 Level 3 7 | . . . . . 17 5 . . . . . . . . . . 16 Level 4 2 | . . . . . . . . . . . . . . . . . 12 Level 5 11 | . . . . . . . . . . . . . . . . . 51 High Security . | . . . . . . . . . . . . . . . . . . Max Security . | . . . . . . . . . . . . . . . . . . Peak Influence 2254 | . 124 44 100 380 1080 708 268 . 35 50 175 481 457 245 108 110 2254 Initial 486 | . . 44 9 37 165 486 268 . . . . 75 202 245 72 12 50 Average 498 | . 51 38 24 175 314 595 223 . 4 12 130 382 371 94 61 64 1367 Influence Increases 8960 | . 287 . 215 651 1541 771 48 . 98 74 252 571 424 363 299 268 3098 Destroy 0b10 Robot/C 3800 | . 140 . 160 280 600 500 . . 20 . 100 40 100 80 80 40 1660 Destroy 0b10 Robot/NC 555 | . 20 . 20 75 135 50 5 . 20 . 15 20 40 30 50 5 70 Destroy Leader 848 | . 32 . 32 56 174 146 . . 16 . 22 14 18 2 44 10 282 Allied During Kill 102 | . . . . . . . . . . . 100 . . . 2 . . Successful Hack 368 | . 50 . . . 23 14 43 . 8 . 7 46 . 93 15 45 24 Select Force Hacks 30 | . 30 . . . . . . . . . . . . . . . . Disable Machine 1170 | . 15 . . . 435 45 . . . . . 300 15 60 . 120 180 Anti-Garrison Action 150 | . . . . 150 . . . . . . . . . . . . . Destroy Structure 782 | . . . 3 15 159 16 . . 4 74 8 106 56 8 93 3 237 Partial Spotted 210 | . . . . . 15 . . . 30 . . 30 15 . . . 120 Lose Combat Pursuer 945 | . . . . 75 . . . . . . . 15 180 90 15 45 525 Influence Decreases 6706 | . 173 90 149 377 835 1152 561 176 98 74 97 340 374 671 405 200 934 Entered New Map 2079 | . . 70 15 53 199 584 421 176 . . . 80 184 191 56 10 40 Time Decay 3385 | . 173 20 124 254 556 458 140 . 98 54 50 120 150 180 254 140 614 Lost Part 570 | . . . 10 70 80 110 . . . . . . 20 . 10 30 240 Lost Ally 329 | . . . . . . . . . . 20 47 140 20 . 42 20 40 Purge Threat 343 | . . . . . . . . . . . . . . 300 43 . . Squads Dispatched 61 | . 3 . . 5 14 9 . . 2 . 1 4 7 1 6 2 7 Investigation 22 | . 1 . . 1 3 5 . . 2 . . 2 2 . 2 . 4 Extermination 12 | . . . . . 3 2 . . . . . . 2 1 2 2 . Reinforcement 20 | . 2 . . 1 5 1 . . . . 1 2 3 . 2 . 3 Assault 2 | . . . . 2 . . . . . . . . . . . . . Garrison 5 | . . . . 1 3 1 . . . . . . . . . . . Intercept . | . . . . . . . . . . . . . . . . . . Searches Triggered . | . . . . . . . . . . . . . . . . . . Construction Impeded 2 | . . . . . 2 . . . . . . . . . . . . Haulers Reinforced 3 | . . . . . 1 . . . . . 1 . 1 . . . . Active Scanning Responses . | . . . . . . . . . . . . . . . . . . Cargo Convoy Interrupts . | . . . . . . . . . . . . . . . . . . Stealth | -11 -10 -10 -9 -8 -7 -7 -7 -7 -5 -5 -5 -4 -3 -3 -2 -2 -2 --------- Run | Yrd Mat Min Mat Mat Fac Sto Rec Scr Fac Was Fac Fac Res Tes Res Qua Frg Distress Signals 20 | . 1 . . 2 1 4 . . . . . 1 1 . 1 1 8 Communications Jammed . | . . . . . . . . . . . . . . . . . . Distress Signals . | . . . . . . . . . . . . . . . . . . Times Spotted 369 | . 12 . 8 25 33 39 1 . 3 2 1 4 26 11 8 9 187 Peak Tracking Total 18 | . 4 . 4 8 4 4 1 . 1 2 1 2 8 5 3 4 18 Tactical Retreats 29 | . . . . 1 . . . . . . . 1 5 2 1 1 18 Traps | -11 -10 -10 -9 -8 -7 -7 -7 -7 -5 -5 -5 -4 -3 -3 -2 -2 -2 ------- Run | Yrd Mat Min Mat Mat Fac Sto Rec Scr Fac Was Fac Fac Res Tes Res Qua Frg Traps Triggered 17 | . . . . 2 3 5 . . 3 . . 1 1 . . . 2 Indirectly . | . . . . . . . . . . . . . . . . . . Trap Hack Attempts . | . . . . . . . . . . . . . . . . . . Triggered . | . . . . . . . . . . . . . . . . . . Disarmed . | . . . . . . . . . . . . . . . . . . Reprogrammed . | . . . . . . . . . . . . . . . . . . Reused . | . . . . . . . . . . . . . . . . . . Traps Extracted . | . . . . . . . . . . . . . . . . . . Installed . | . . . . . . . . . . . . . . . . . . Triggered . | . . . . . . . . . . . . . . . . . . Objects Rigged 12 | . . . . . 12 . . . . . . . . . . . . Exploded 3 | . . . . . 3 . . . . . . . . . . . . Machines | -11 -10 -10 -9 -8 -7 -7 -7 -7 -5 -5 -5 -4 -3 -3 -2 -2 -2 ---------- Run | Yrd Mat Min Mat Mat Fac Sto Rec Scr Fac Was Fac Fac Res Tes Res Qua Frg Machines Disabled 82 | . 1 . . 1 29 3 . . . . . 20 1 6 . 8 13 Max in Single Turn 19 | . 1 . . 1 19 1 . . . . . 17 1 3 . 1 2 Garrison Access 4 | . . . . 1 . . . . . . . 1 . . 2 . . Machines Repaired . | . . . . . . . . . . . . . . . . . . Machines Dismantled . | . . . . . . . . . . . . . . . . . . Machines Sabotaged . | . . . . . . . . . . . . . . . . . . Overloaded Fab Kills . | . . . . . . . . . . . . . . . . . . Hacking | -11 -10 -10 -9 -8 -7 -7 -7 -7 -5 -5 -5 -4 -3 -3 -2 -2 -2 --------- Run | Yrd Mat Min Mat Mat Fac Sto Rec Scr Fac Was Fac Fac Res Tes Res Qua Frg Machines Accessed 76 | . 4 . 1 2 11 6 5 2 3 . 1 6 5 6 8 8 8 Terminals 48 | . 3 . . 2 4 5 5 . 1 . 1 1 2 6 5 8 5 Fabricators 2 | . . . . . . . . . 1 . . 1 . . . . . Repair Stations 3 | . . . 1 . 2 . . . . . . . . . . . . Recycling Units 15 | . 1 . . . 4 1 . . 1 . . 2 2 . 1 . 3 Scanalyzers 1 | . . . . . . . . . . . . 1 . . . . . Garrison Access 5 | . . . . . 1 . . . . . . 1 1 . 2 . . Total Hacks 269 | . 17 . 4 9 25 21 16 19 7 . 5 17 6 34 26 43 20 Successful 148 | . 12 . 1 2 16 6 7 19 4 . 3 12 2 17 14 24 9 Failed 120 | . 5 . 3 7 9 15 9 . 3 . 2 5 4 17 12 18 11 Catastrophic 25 | . 1 . 1 2 4 4 5 . . . . . 2 4 . . 2 Database Lockouts 1 | . . . . . . . . . . . . . . . . 1 . Manual 140 | . 12 . . 4 6 9 10 . 7 . 2 6 4 21 17 26 16 Terminals 189 | . 15 . . 9 10 18 16 . 1 . 5 3 3 34 18 43 14 Fabricators 9 | . . . . . . . . . 5 . . 4 . . . . . Repair Stations 10 | . . . 4 . 6 . . . . . . . . . . . . Recycling Units 29 | . 2 . . . 8 3 . . 1 . . 2 2 . 5 . 6 Scanalyzers 4 | . . . . . . . . . . . . 4 . . . . . Garrison Access 9 | . . . . . 1 . . . . . . 4 1 . 3 . . Terminal Hacks 84 | . 9 . . 1 2 3 4 19 . . 2 1 . 13 8 19 3 Record 19 | . . . . . . . . 18 . . . . . . . 1 . Part Schematic 2 | . . . . . . . 1 . . . 1 . . . . . . Robot Schematic 1 | . . . . . . . 1 . . . . . . . . . . Robot Analysis 6 | . . . . . . 1 1 . . . . . . 2 . 2 . Prototype ID Bank 10 | . 3 . . . . 2 . . . . . . . 1 1 2 1 Open DSF 1 | . . . . . . . . . . . . . . . 1 . . Level Access Points 1 | . . . . . . . . . . . . . . 1 . . . Branch Access Points 2 | . 1 . . . 1 . . . . . . . . . . . . Emergency Access Points 1 | . . . . . . . . . . . . . . . . 1 . Machine Index 1 | . . . . . . . . . . . . . . . . 1 . Terminal Index 3 | . . . . . . . . . . . 1 1 . . 1 . . Recycling Unit Index 1 | . . . . . . . . . . . . . . 1 . . . Garrison Index 1 | . . . . . . . 1 . . . . . . . . . . Alert Level 7 | . . . . 1 . . . . . . . . . 2 1 2 1 Unreport Threat 3 | . . . . . . . . . . . . . . 2 1 . . Locate Traps 6 | . 2 . . . 1 . . . . . . . . 1 . 1 1 Dispatch Records 1 | . . . . . . . . . . . . . . . . 1 . Surveillance Status 1 | . . . . . . . . . . . . . . . . 1 . Patrol Status 2 | . . . . . . . . . . . . . . . . 2 . Recall Investigation 1 | . . . . . . . . . . . . . . . 1 . . Recall Extermination 3 | . . . . . . . . . . . . . . 1 1 1 . Recall Reinforcements 1 | . . . . . . . . . . . . . . . 1 . . Hauler Manifests 1 | . . . . . . . . . . . . . . . . 1 . Registered Components 1 | . . . . . . . . . . . . . . . . 1 . Registered Prototypes 3 | . 1 . . . . . . . . . . . . . . 2 . Zone Layout 3 | . 2 . . . . . . . . . . . . 1 . . . Proto ID Catalog 1 | . . . . . . . . 1 . . . . . . . . . Protovariant Controls 1 | . . . . . . . . . . . . . . 1 . . . Fabricator Hacks 2 | . . . . . . . . . 1 . . 1 . . . . . Network Status 2 | . . . . . . . . . 1 . . 1 . . . . . Repair Station Hacks 5 | . . . 1 . 4 . . . . . . . . . . . . Scan Component 3 | . . . 1 . 2 . . . . . . . . . . . . Repair 2 | . . . . . 2 . . . . . . . . . . . . Recycling Unit Hacks 9 | . 1 . . . 7 1 . . . . . . . . . . . Process 2 | . . . . . 2 . . . . . . . . . . . . Report Inventory 6 | . 1 . . . 4 1 . . . . . . . . . . . Retrieve Components 1 | . . . . . 1 . . . . . . . . . . . . Scanalyzer 3 | . . . . . . . . . . . . 3 . . . . . Insert Component 2 | . . . . . . . . . . . . 2 . . . . . Analyze 1 | . . . . . . . . . . . . 1 . . . . . Garrison Access Hacks 3 | . . . . . . . . . . . . 1 . . 2 . . Seal Access 3 | . . . . . . . . . . . . 1 . . 2 . . Unauthorized Hacks 41 | . 2 . . 1 3 2 3 . 3 . 1 6 2 4 3 5 6 Terminals 25 | . 1 . . 1 2 2 3 . . . 1 1 . 4 2 5 3 Track 1 | . . . . . . . . . . . . . . . . 1 . Assimilate 4 | . . . . . . . . . . . . . . 1 2 1 . Botnet 18 | . 1 . . 1 1 2 3 . . . 1 1 . 3 . 2 3 Detonate 1 | . . . . . 1 . . . . . . . . . . . . Operators 1 | . . . . . . . . . . . . . . . . 1 . Fabricators 5 | . . . . . . . . . 2 . . 3 . . . . . Liberate 2 | . . . . . . . . . 1 . . 1 . . . . . Fabnet 2 | . . . . . . . . . 1 . . 1 . . . . . Haulers 1 | . . . . . . . . . . . . 1 . . . . . Repair Stations 1 | . . . . . 1 . . . . . . . . . . . . Patch 1 | . . . . . 1 . . . . . . . . . . . . Recycling Units 10 | . 1 . . . . . . . 1 . . 2 2 . 1 . 3 Tunnel 1 | . 1 . . . . . . . . . . . . . . . . Fedlink 8 | . . . . . . . . . 1 . . 2 2 . . . 3 Scrapoids 1 | . . . . . . . . . . . . . . . 1 . . Scanalyzers . | . . . . . . . . . . . . . . . . . . Garrison Access . | . . . . . . . . . . . . . . . . . . Data Cores Recovered 2 | . . . . . . . . . . . . . . 1 . 1 . Used . | . . . . . . . . . . . . . . . . . . Hacking Detections 61 | . 4 . 1 2 10 6 5 . 1 . 1 3 3 6 5 8 6 Full Trace Events 14 | . . . 1 1 2 5 4 . . . . . . . . . 1 Feedback Events 1 | . . . . 1 . . . . . . . . . . . . . Corruption 1 | . . . . 1 . . . . . . . . . . . . . Feedback Blocked . | . . . . . . . . . . . . . . . . . . Robot Schematics Acquired 3 | . . . . . . . 1 . . . . . . 2 . . . Robots Built . | . . . . . . . . . . . . . . . . . . Authchips . | . . . . . . . . . . . . . . . . . . Time . | . . . . . . . . . . . . . . . . . . Total Robot Build Rating . | . . . . . . . . . . . . . . . . . . Part Schematics Acquired 11 | . . . . . . . 1 . . . 1 1 . 8 . . . Parts Built . | . . . . . . . . . . . . . . . . . . Authchips . | . . . . . . . . . . . . . . . . . . Time . | . . . . . . . . . . . . . . . . . . Total Part Build Rating . | . . . . . . . . . . . . . . . . . . Parts Repaired 2 | . . . . . 2 . . . . . . . . . . . . Time 130 | . . . . . 130 . . . . . . . . . . . . Parts Recycled . | . . . . . . . . . . . . . . . . . . Recycled Matter 193 | . . . . . 193 . . . . . . . . . . . . Retrieved Matter . | . . . . . . . . . . . . . . . . . . Retrieved Components 10 | . . . . . 10 . . . . . . . . . . . . Parts Scanalyzed 1 | . . . . . . . . . . . . 1 . . . . . Part Schematics Acquired 1 | . . . . . . . . . . . . 1 . . . . . Parts Damaged 1 | . . . . . . . . . . . . 1 . . . . . Bothacking | -11 -10 -10 -9 -8 -7 -7 -7 -7 -5 -5 -5 -4 -3 -3 -2 -2 -2 ------------ Run | Yrd Mat Min Mat Mat Fac Sto Rec Scr Fac Was Fac Fac Res Tes Res Qua Frg Used RIF Installer . | . . . . . . . . . . . . . . . . . . Robots Hacked 4 | . . . . . . . . . . . . . 2 . . . 2 Non-combat . | . . . . . . . . . . . . . . . . . . Combat 4 | . . . . . . . . . . . . . 2 . . . 2 Robot Hacks Applied . | . . . . . . . . . . . . . . . . . . Relay Couplers Released 1 | . . . . 1 . . . . . . . . . . . . . Machine Destruction 1 | . . . . 1 . . . . . . . . . . . . . Fabnet Peak Effective % 4 | . . . . . . . . . . . . 3 4 4 1 1 1 Autooverrided 4 | . . . . . . . . . . . . . 2 . . . 2 Robots Rewired . | . . . . . . . . . . . . . . . . . . Allies Hacked . | . . . . . . . . . . . . . . . . . . Hacks Repelled . | . . . . . . . . . . . . . . . . . . Allies | -11 -10 -10 -9 -8 -7 -7 -7 -7 -5 -5 -5 -4 -3 -3 -2 -2 -2 -------- Run | Yrd Mat Min Mat Mat Fac Sto Rec Scr Fac Was Fac Fac Res Tes Res Qua Frg Total Allies 32 | . . . . . . . . . . 19 . . 2 1 7 1 2 Largest Group 19 | . . . . . . . . . . 19 12 9 1 1 6 2 . Highest-Rated Group 669 | . . . . . . . . . . 669 462 362 64 10 346 36 . Highest-Rated Ally 64 | . . . . . . . . . . 50 50 50 64 10 64 26 . Total Orders 1 | . . . . . . . . . . . . . . . 1 . . STAY 1 | . . . . . . . . . . . . . . . 1 . . Ally Attacks 196 | . . . . . . . . . . 115 30 23 3 . 23 . 2 Total Damage 6737 | . . . . . . . . . . 4518 895 582 52 . 670 . 20 Kills 19 | . . . . . . . . . . 11 5 2 1 . . . . Allies Corrupted . | . . . . . . . . . . . . . . . . . . Allies Melted 2 | . . . . . . . . . . . . . . . 2 . . Intel | -11 -10 -10 -9 -8 -7 -7 -7 -7 -5 -5 -5 -4 -3 -3 -2 -2 -2 ------- Run | Yrd Mat Min Mat Mat Fac Sto Rec Scr Fac Was Fac Fac Res Tes Res Qua Frg Active Infowar (turns) 8581 | . . . . 126 1633 1148 281 776 421 215 113 251 314 378 590 296 2039 Optics 3617 | . . . . . . . . . . . . . 314 378 590 296 2039 Sensors 2836 | . . . . . . . . 60 420 213 99 251 314 378 590 296 215 Structural 2752 | . . . . . . . . 51 407 215 109 251 314 375 590 283 157 Machine Analysis 4996 | . . . . 126 1633 1148 281 776 421 215 92 251 53 . . . . Cloaking 2816 | . . . . . . . . . 317 215 113 250 236 376 590 281 438 Jamming 3 | . . . . . . . . 3 . . . . . . . . . ECM 55 | . . . . . . . . . . . . . . . 55 . . Robot Analysis Total 6 | . . . . . . 1 1 . . . . . . 2 . 2 . Derelict Logs Recovered . | . . . . . . . . . . . . . . . . . . Drone Launches . | . . . . . . . . . . . . . . . . . . Drone Recoveries . | . . . . . . . . . . . . . . . . . . Exploration | -11 -10 -10 -9 -8 -7 -7 -7 -7 -5 -5 -5 -4 -3 -3 -2 -2 -2 ------------- Run | Yrd Mat Min Mat Mat Fac Sto Rec Scr Fac Was Fac Fac Res Tes Res Qua Frg Turns Passed 9792 | . 398 40 348 551 1633 1148 281 776 421 215 113 251 314 378 590 296 2039 Spaces Moved 10941 | 1 182 21 156 240 705 584 203 625 783 259 121 525 734 613 1139 731 3319 Core 15 | . . . . 12 . 3 . . . . . . . . . . . Treads 1113 | . 114 21 156 46 662 114 . . . . . . . . . . . Legs 1108 | 1 68 . . 3 . 297 203 536 . . . . . . . . . Wheels 392 | . . . . 179 43 170 . . . . . . . . . . . Hover 9 | . . . . . . . . . 9 . . . . . . . . Flight 8304 | . . . . . . . . 89 774 259 121 525 734 613 1139 731 3319 Fastest Speed 7 | 120 120 160 160 115 130 100 130 29 26 25 25 25 24 24 24 19 7 Average Speed 55 | 120 145 160 160 149 165 139 130 117 26 26 25 25 25 24 26 21 29 Slowest Speed 600 | 120 160 160 160 600 250 400 130 435 100 29 25 25 110 24 104 183 112 Overloaded Moves 9 | . . . . . . . . . . . . . . . . . 9 Propulsion Burnouts . | . . . . . . . . . . . . . . . . . . Robots Hopped 34 | . . . . . . 1 . . 5 . . . 8 . . . 20 Potential Cave-ins 26 | . . . . . . . . . . . . . . . 2 . 24 Cave-ins Triggered 1 | . . . . . . . . . . . . . . . . . 1 Exploration Rate (%) 35 | 2 31 6 14 22 26 79 54 41 13 91 4 17 25 63 27 68 61 Regions Visited 17 Branch Regions 7 Pre-discovered Areas 7 | . 1 . . . . . . 5 . . . 1 . . . . . Known Exits Taken 9 | . 1 . . . 1 . . 1 . . 1 1 1 1 1 1 . Unknown Exits Taken 6 | 1 . 1 1 1 . 1 1 . . . . . . . . . . Scrap Searched 1 | . . . . . . . . 1 . . . . . . . . . Spaces Dug 50 | . . . . . 1 . . . . . . 12 3 2 21 1 10 Terrain Destroyed 415 | . . . . 16 174 14 . . 2 . 1 48 24 3 49 1 83 Melee 33 | . . . . . . . . . . . . 11 3 2 8 1 8 Projectile 60 | . . . . . 2 9 . . . . 1 1 . . . . 47 AOE 315 | . . . . 16 172 5 . . . . . 36 21 1 40 . 24 Terrain Rammed . | . . . . . . . . . . . . . . . . . . Walls Destroyed . | . . . . . . . . . . . . . . . . . . Machines Disabled . | . . . . . . . . . . . . . . . . . . Actions | -11 -10 -10 -9 -8 -7 -7 -7 -7 -5 -5 -5 -4 -3 -3 -2 -2 -2 --------- Run | Yrd Mat Min Mat Mat Fac Sto Rec Scr Fac Was Fac Fac Res Tes Res Qua Frg Total 13516 | . 250 25 205 348 1028 759 212 680 968 396 192 610 816 813 1371 816 4027 Wait 1036 | . 7 . 2 3 165 13 2 2 136 114 56 25 24 133 129 3 222 Move 10863 | . 181 20 155 239 704 581 202 624 773 258 120 524 719 611 1138 730 3284 Hop 26 | . . . . . . 1 . . 5 . . . 6 . . . 14 Pick Up 135 | . 10 . 6 20 13 21 1 11 5 1 3 3 3 7 9 6 16 Fast Attach 140 | . 1 . . 7 14 12 . 3 5 5 1 4 10 1 6 14 57 Attach 86 | . 2 . 3 4 5 8 . 5 9 . 1 4 3 1 . 3 38 Detach 85 | . . . . 2 6 . . 4 6 . . 3 3 . 1 5 55 Swap 211 | . 3 . 11 8 21 29 1 5 7 8 2 13 15 12 28 9 39 Drop 212 | . 10 . 4 19 16 17 1 26 6 7 4 7 11 8 17 16 43 Fire 462 | . 35 . 23 45 67 74 4 . 16 3 5 3 3 7 25 2 150 Melee 116 | . . . . . . 3 . . . . . 15 19 13 18 28 20 Ram . | . . . . . . . . . . . . . . . . . . Kick 1 | . . . . . . . 1 . . . . . . . . . . Crush 16 | . 1 5 1 1 8 . . . . . . . . . . . . Escape Stasis 57 | . . . . . 9 . . . . . . 9 . 20 . . 19 Rewire . | . . . . . . . . . . . . . . . . . . Trap . | . . . . . . . . . . . . . . . . . . Miscellaneous 70 | . . . . . . . . . . . . . . . . . 70 Route ------- -11/Scrapyard -10/Materials (discovered 2 exits: *Min x2) -10/Mines -9/Materials -8/Materials -7/Factory (discovered 4 exits: *Sto x2 / Low x2) -7/Storage (discovered 2 exits: [*Fac] / *Rec) -7/Recycling (discovered 2 exits: *Fac / *Scr) -7/Scraptown -5/Factory (discovered 3 exits: *Upp / Ext x2) -5/Waste -5/Factory -4/Factory (discovered 2 exits: *Res x2) -3/Research (discovered 3 exits: Res / *Tes x2) -3/Testing -2/Research -2/Quarantine (discovered 3 exits: [*Acc] / *Sec / *Frg) -2/Protoforge (discovered 1 exit: [*Acc]) History --------- Turn | Location | Event 1 | -11/Scrapyard | Discovered new exit (range 0) 1 | -11/Scrapyard | Entered Materials 74 | -10/Materials | Identified exit to Mines 312 | -10/Materials | Build established: Mutant 399 | -10/Materials | Entered Mines 420 | -10/Mines | Discovered new exit (range 3) 439 | -10/Mines | Entered Materials 439 | -9/Materials | Evolved 2 slots: Utility x2 703 | -9/Materials | Discovered new exit (range 16) 787 | -9/Materials | Entered another Materials area 787 | -8/Materials | Evolved 2 slots: Utility x2 957 | -8/Materials | Lost 4 parts (1p2n1u) 1275 | -8/Materials | Garrison activated, responded to threat 1315 | -8/Materials | Discovered new exit (range 10) 1338 | -8/Materials | Entered Factory 1338 | -7/Factory | Evolved 2 slots: Propulsion x1, Weapon x1 1503 | -7/Factory | Repaired Hvy. EM Shotgun 2046 | -7/Factory | Garrison activated, responded to threat 2057 | -7/Factory | Build established: Gunner 2403 | -7/Factory | Repaired Cld. Pulse Rifle 2540 | -7/Factory | Build established: Scavenger-Gunner 2756 | -7/Factory | Identified exit to Storage 2756 | -7/Factory | Identified exit to Lower Caves 2971 | -7/Factory | Entered Storage 3324 | -7/Storage | Core integrity fell below 50% 3379 | -7/Storage | Destroyed 7 combat bots 3450 | -7/Storage | Lost 9 parts (2p3n4w) 3590 | -7/Storage | Met 01-MTF 3731 | -7/Storage | Build established: Gunner 3770 | -7/Storage | Discovered new exit (range 8) 3850 | -7/Storage | Garrison activated, responded to threat 4069 | -7/Storage | System corruption reached 10% 4113 | -7/Storage | Discovered new exit (range 3) 4119 | -7/Storage | Entered Recycling 4119 | -7/Recycling | Accompanied by 2 allies (01-MTF) 4342 | -7/Recycling | Discovered new exit (range 15) 4354 | -7/Recycling | Scanned before Scraplab entrance 4380 | -7/Recycling | Found Prototype Energy Gun 4380 | -7/Recycling | Identified KN-7UR's Autopenetrator 4387 | -7/Recycling | Entered Scraplab 4397 | -7/Recycling | Discovered new exit (range 2) 4400 | -7/Recycling | Entered Scraptown 4400 | -7/Scraptown | System corruption cleaned by C-Scrubber 4542 | -7/Scraptown | Visited UFD Registry 4553 | -7/Scraptown | Registered with UFD as "Waveguard" 4596 | -7/Scraptown | Visited Cartography Club 4629 | -7/Scraptown | Found Surveybot 17 Chip 4700 | -7/Scraptown | Found Deep Structural Scanner 4713 | -7/Scraptown | Learned location of Storage (-7) 4713 | -7/Scraptown | Learned location of Proximity Caves (-5) 4713 | -7/Scraptown | Learned 12 Materials zone layouts 4713 | -7/Scraptown | Learned 4 Mines zone layouts 4713 | -7/Scraptown | Learned location of Zion (-6) 4713 | -7/Scraptown | Learned location of Armory (-4) 4713 | -7/Scraptown | Learned 4 Storage zone layouts 4713 | -7/Scraptown | Learned 16 Upper Caves zone layouts 4713 | -7/Scraptown | Learned Research emergency access door positions 4713 | -7/Scraptown | Learned location of 2 exits from Factory 4713 | -7/Scraptown | Learned 24 Upper Caves zone layouts 4713 | -7/Scraptown | Learned location of 2 exits from Research 4713 | -7/Scraptown | Learned location of 1 exit from Lower Caves 4757 | -7/Scraptown | Visited Science Guys 4805 | -7/Scraptown | Visited Research Penetration Think Tank 4837 | -7/Scraptown | Visited Supply Room 4870 | -7/Scraptown | Visited Supply Room 4958 | -7/Scraptown | Visited Infowarlord's Domain 4991 | -7/Scraptown | Found Exp. Sensor Array 5016 | -7/Scraptown | Visited Derelict Rescue Squad 5027 | -7/Scraptown | Found DRS Beacon 5160 | -7/Scraptown | Met Optimus 5160 | -7/Scraptown | Accepted into 0bPrime 5173 | -7/Scraptown | Discovered new exit (range 9) 5175 | -7/Scraptown | Identified exit to Factory 5176 | -7/Scraptown | Entered Factory 5176 | -5/Factory | Evolved 4 slots: Power x1, Propulsion x2, Utility x1 5177 | -5/Factory | Identified exit to Extension 5178 | -5/Factory | Identified exit to Upper Caves 5442 | -5/Factory | Build established: Scout 5594 | -5/Factory | Spotted B-75 Beast 5594 | -5/Factory | Loaded intel: 8 recycling unit locations 5597 | -5/Factory | Sucked down chute 5597 | -5/Factory | Entered Waste 5598 | -5/Waste | Met a frightened Derelict 5602 | -5/Waste | Spotted C-40 Crusher 5605 | -5/Waste | Spotted C-40 Crusher 5608 | -5/Waste | Spotted C-40 Crusher 5609 | -5/Waste | Spotted C-40 Crusher 5612 | -5/Waste | Warlord forces began an assault 5627 | -5/Waste | Allies destroyed C-40 Crusher 5629 | -5/Waste | Spotted C-40 Crusher 5633 | -5/Waste | Allies destroyed C-40 Crusher 5645 | -5/Waste | Spotted C-40 Crusher 5649 | -5/Waste | Allies destroyed C-40 Crusher 5653 | -5/Waste | Allies destroyed C-40 Crusher 5661 | -5/Waste | Allies destroyed C-40 Crusher 5665 | -5/Waste | Allies destroyed C-40 Crusher 5692 | -5/Waste | Lost 6 allies 5705 | -5/Waste | Found Broken Adv. Powered Armor 5742 | -5/Waste | Discovered new exit (range 11) 5744 | -5/Waste | Identified exit to Factory 5812 | -5/Waste | Entered Factory 5812 | -5/Factory | Accompanied by 12 allies 5817 | -5/Factory | Discovered new exit (range 16) 5844 | -5/Factory | Identified exit to Factory 5925 | -5/Factory | Entered another Factory area 5925 | -4/Factory | Accompanied by 9 allies 5925 | -4/Factory | Evolved 2 slots: Utility x2 5926 | -4/Factory | Identified exit to Research 6106 | -4/Factory | Loaded intel: 8 recycling unit locations 6106 | -4/Factory | Learned location of Protoforge (-2) 6176 | -4/Factory | Entered Research 6176 | -3/Research | Evolved 2 slots: Utility x2 6177 | -3/Research | Identified exit to Testing 6178 | -3/Research | Identified exit to Research 6225 | -3/Research | Loaded intel: 5 recycling unit locations 6354 | -3/Research | Local machine network offline 6490 | -3/Research | Entered Testing 6539 | -3/Testing | Found Prototype Energy Gun 6539 | -3/Testing | Identified Hyp. EM Gauss Rifle 6563 | -3/Testing | Build established: Hacker-Ninja 6783 | -3/Testing | Found Prototype Launcher 6783 | -3/Testing | Identified Z-bomb Delivery System 6819 | -3/Testing | Found Prototype Ballistic Gun 6819 | -3/Testing | Identified Hyp. Multirail 6868 | -3/Testing | Entered Research 6868 | -2/Research | Accompanied by 1 ally 6868 | -2/Research | Evolved 2 slots: Propulsion x1, Utility x1 6869 | -2/Research | Identified exit to Quarantine 7184 | -2/Research | Spotted B-90 Cyclops 7381 | -2/Research | Spotted B-90 Cyclops 7411 | -2/Research | Scrapoids reinforcements arrived? 7428 | -2/Research | Destroyed B-90 Cyclops 7456 | -2/Research | Lost 3 allies 7458 | -2/Research | Entered Quarantine 7458 | -2/Quarantine | Accompanied by 1 ally 7482 | -2/Quarantine | Found Alien Slashing Weapon 7482 | -2/Quarantine | Identified Sigix Broadsword 7554 | -2/Quarantine | Found Spectral Analyzer 7587 | -2/Quarantine | Found Alien Artifact 7587 | -2/Quarantine | Identified Terrabomb 7587 | -2/Quarantine | Used Terrabomb 7593 | -2/Quarantine | Found Terrabomb 7614 | -2/Quarantine | Found Alien Artifact 7614 | -2/Quarantine | Identified Phase Armor 7630 | -2/Quarantine | Found Alien Impact Weapon 7630 | -2/Quarantine | Identified Core Stripper 7659 | -2/Quarantine | Found Alien Artifact 7659 | -2/Quarantine | Identified Phase Redirector 7667 | -2/Quarantine | Discovered new exit (range 9) 7683 | -2/Quarantine | Found Alien Artifact 7685 | -2/Quarantine | Identified Subatomic Replicator 7685 | -2/Quarantine | Used Subatomic Replicator to replicate Hyp. Multirail 7716 | -2/Quarantine | Central database locked down 7736 | -2/Quarantine | Spotted Fortress 7752 | -2/Quarantine | Discovered new exit (range 6) 7752 | -2/Quarantine | Discovered new exit (range 6) 7752 | -2/Quarantine | Identified exit to Protoforge 7753 | -2/Quarantine | Identified exit to Section 7 7754 | -2/Quarantine | Entered Protoforge 7769 | -2/Protoforge | Spotted Hotshot 7769 | -2/Protoforge | Spotted Hotshot 7769 | -2/Protoforge | Spotted Hotshot 7769 | -2/Protoforge | Superfortress began startup sequence 7771 | -2/Protoforge | Spotted Hotshot 7826 | -2/Protoforge | Used Terrabomb 7826 | -2/Protoforge | Spotted EXE-6 7826 | -2/Protoforge | Spotted EXE-6 7826 | -2/Protoforge | Spotted Overlord 7830 | -2/Protoforge | Spotted Decapitator 7830 | -2/Protoforge | Spotted Decapitator 7842 | -2/Protoforge | UFD initiated attack on Protoforge 7842 | -2/Protoforge | Loaded intel: 3 recycling unit locations 7847 | -2/Protoforge | Spotted EXE-6 7861 | -2/Protoforge | Spotted EXE-6 7873 | -2/Protoforge | Destroyed Decapitator 7873 | -2/Protoforge | Destroyed Decapitator 7878 | -2/Protoforge | Optimus greeted in Protoforge 7887 | -2/Protoforge | Found Prototype Ballistic Gun 7887 | -2/Protoforge | Identified Cep. XC Strikerail 7889 | -2/Protoforge | Found Cep. XC Strikerail 7891 | -2/Protoforge | Found Cep. XC Strikerail 7893 | -2/Protoforge | Found Prototype Processor 7893 | -2/Protoforge | Identified Exp. Core Analyzer 7897 | -2/Protoforge | Found Exp. Core Analyzer 7909 | -2/Protoforge | Found Prototype Processor 7909 | -2/Protoforge | Identified Exp. Armor Integrity Analyzer 7911 | -2/Protoforge | Found Prototype Device 7911 | -2/Protoforge | Identified Exp. Kinecellerator 7927 | -2/Protoforge | Destroyed Overlord 7927 | -2/Protoforge | Destroyed Hotshot 7931 | -2/Protoforge | Destroyed Hotshot 7935 | -2/Protoforge | Destroyed Hotshot 7945 | -2/Protoforge | Found Exp. Core Analyzer 7971 | -2/Protoforge | Destroyed 7 combat bots 7973 | -2/Protoforge | Met 7R-MNS 7983 | -2/Protoforge | Destroyed EXE-6 7994 | -2/Protoforge | Spotted Hotshot 7995 | -2/Protoforge | Spotted Hotshot 8007 | -2/Protoforge | Spotted AP7-3 8010 | -2/Protoforge | Spotted AP7-3 8018 | -2/Protoforge | Destroyed AP7-3 8040 | -2/Protoforge | Lost 9 allies 8044 | -2/Protoforge | UFD reported confirmed Drillbomb installation 8050 | -2/Protoforge | Forge Plexus network access discovered 8050 | -2/Protoforge | Found Exp. Target Analyzer 8053 | -2/Protoforge | Found Exp. Target Analyzer 8054 | -2/Protoforge | Found Cep. XC Strikerail 8075 | -2/Protoforge | Spotted Executioner 8077 | -2/Protoforge | Spotted Striker 8083 | -2/Protoforge | Spotted Hotshot 8083 | -2/Protoforge | Spotted Hotshot 8083 | -2/Protoforge | Spotted Hotshot 8099 | -2/Protoforge | Destroyed Hotshot 8106 | -2/Protoforge | Destroyed Hotshot 8114 | -2/Protoforge | Destroyed Hotshot 8120 | -2/Protoforge | Spotted Hotshot 8123 | -2/Protoforge | Spotted Hotshot 8124 | -2/Protoforge | Destroyed Hotshot 8130 | -2/Protoforge | Destroyed Hotshot 8133 | -2/Protoforge | Destroyed Hotshot 8135 | -2/Protoforge | Spotted B-90 Cyclops 8142 | -2/Protoforge | Spotted Striker 8146 | -2/Protoforge | Destroyed Executioner 8150 | -2/Protoforge | Spotted Executioner 8150 | -2/Protoforge | Spotted Striker 8154 | -2/Protoforge | Destroyed Striker 8159 | -2/Protoforge | Spotted Decapitator 8159 | -2/Protoforge | Spotted Decapitator 8159 | -2/Protoforge | Spotted Decapitator 8159 | -2/Protoforge | Spotted Decapitator 8160 | -2/Protoforge | Destroyed Decapitator 8160 | -2/Protoforge | Destroyed Decapitator 8203 | -2/Protoforge | Lost 5 allies 8207 | -2/Protoforge | Destroyed 13 combat bots 8349 | -2/Protoforge | Spotted Executioner 8377 | -2/Protoforge | Spotted Executioner 8458 | -2/Protoforge | Spotted Executioner 8458 | -2/Protoforge | Spotted Executioner 8458 | -2/Protoforge | Spotted Striker 8458 | -2/Protoforge | Spotted Executioner 8466 | -2/Protoforge | Destroyed Executioner 8475 | -2/Protoforge | Spotted Executioner 8476 | -2/Protoforge | Spotted Striker 8478 | -2/Protoforge | Destroyed Executioner 8481 | -2/Protoforge | Destroyed Striker 8481 | -2/Protoforge | Destroyed Executioner 8515 | -2/Protoforge | Lost 4 allies 8549 | -2/Protoforge | Destroyed 19 combat bots 8560 | -2/Protoforge | Found UFD Drillbomb 8565 | -2/Protoforge | Spotted Executioner 8565 | -2/Protoforge | Spotted Striker 8571 | -2/Protoforge | Found UFD Drillbomb 8572 | -2/Protoforge | Destroyed Striker 8592 | -2/Protoforge | Spotted Immortal 8595 | -2/Protoforge | Spotted Immortal 8596 | -2/Protoforge | Destroyed Executioner 8605 | -2/Protoforge | Spotted Immortal 8610 | -2/Protoforge | Installed UFD Drillbomb at designated target 8610 | -2/Protoforge | UFD reported confirmed Drillbomb installation 8634 | -2/Protoforge | Destroyed Immortal 8658 | -2/Protoforge | Destroyed Immortal 8661 | -2/Protoforge | Destroyed Immortal 8668 | -2/Protoforge | Found Prototype Processor 8668 | -2/Protoforge | Identified Exp. Melee Analysis Suite 8689 | -2/Protoforge | Spotted Striker 8698 | -2/Protoforge | Destroyed 7 combat bots 8721 | -2/Protoforge | Lost 3 allies 8724 | -2/Protoforge | Installed UFD Drillbomb at designated target 8724 | -2/Protoforge | UFD reported confirmed Drillbomb installation 8728 | -2/Protoforge | Spotted Striker 8732 | -2/Protoforge | Spotted Executioner 8746 | -2/Protoforge | Destroyed Striker 8756 | -2/Protoforge | Destroyed Executioner 8764 | -2/Protoforge | Found UFD Drillbomb 8820 | -2/Protoforge | Installed UFD Drillbomb at designated target 8820 | -2/Protoforge | UFD reported confirmed Drillbomb installation 8822 | -2/Protoforge | Spotted Immortal 8823 | -2/Protoforge | Spotted Striker 8823 | -2/Protoforge | Spotted Executioner 8823 | -2/Protoforge | Spotted Executioner 8834 | -2/Protoforge | Found UFD Drillbomb 8863 | -2/Protoforge | UFD reported confirmed Drillbomb installation 8863 | -2/Protoforge | Installed UFD Drillbomb at designated target 8863 | -2/Protoforge | UFD reported confirmed Drillbomb installation 8870 | -2/Protoforge | Found UFD Drillbomb 8896 | -2/Protoforge | Installed UFD Drillbomb at designated target 8896 | -2/Protoforge | UFD reported confirmed Drillbomb installation 8939 | -2/Protoforge | Found Prototype Device 8939 | -2/Protoforge | Identified Exp. Cloaking Device 8958 | -2/Protoforge | Found UFD Drillbomb 8960 | -2/Protoforge | Found UFD Drillbomb 8993 | -2/Protoforge | Core integrity fell below 50% 9055 | -2/Protoforge | Installed UFD Drillbomb at designated target 9055 | -2/Protoforge | UFD reported confirmed Drillbomb installation 9061 | -2/Protoforge | Found UFD Drillbomb 9066 | -2/Protoforge | Spotted Immortal 9096 | -2/Protoforge | Installed UFD Drillbomb at designated target 9096 | -2/Protoforge | UFD reported confirmed Drillbomb installation 9119 | -2/Protoforge | Spotted Executioner 9122 | -2/Protoforge | Spotted Executioner 9125 | -2/Protoforge | Spotted Executioner 9149 | -2/Protoforge | Crushed by falling debris 9149 | -2/Protoforge | Spotted Executioner 9171 | -2/Protoforge | Found Corrupted Exp. Jetlance 9172 | -2/Protoforge | System corruption reached 10% 9187 | -2/Protoforge | Lost 4 allies 9193 | -2/Protoforge | Lost 3 parts (1n1u1w) 9216 | -2/Protoforge | Spotted Executioner 9225 | -2/Protoforge | Spotted Striker 9246 | -2/Protoforge | Lost 3 allies 9272 | -2/Protoforge | Spotted Executioner 9282 | -2/Protoforge | Spotted Executioner 9283 | -2/Protoforge | Core integrity fell below 20% 9287 | -2/Protoforge | Found UFD Drillbomb 9289 | -2/Protoforge | Destroyed Executioner 9294 | -2/Protoforge | Destroyed Executioner 9310 | -2/Protoforge | Lost 6 allies 9316 | -2/Protoforge | Lost 3 parts (1p1n1u) 9354 | -2/Protoforge | Spotted Striker 9354 | -2/Protoforge | Spotted Executioner 9404 | -2/Protoforge | Spotted Executioner 9405 | -2/Protoforge | Lost 4 allies 9407 | -2/Protoforge | Spotted Striker 9413 | -2/Protoforge | Destroyed Executioner 9416 | -2/Protoforge | Destroyed Striker 9516 | -2/Protoforge | Spotted Executioner 9525 | -2/Protoforge | Spotted Executioner 9526 | -2/Protoforge | Spotted Executioner 9527 | -2/Protoforge | Spotted Striker 9528 | -2/Protoforge | Destroyed Executioner 9542 | -2/Protoforge | Spotted Executioner 9546 | -2/Protoforge | Destroyed Executioner 9548 | -2/Protoforge | Destroyed Executioner 9560 | -2/Protoforge | Lost 5 parts (1n2u2w) 9605 | -2/Protoforge | Spotted Immortal 9605 | -2/Protoforge | Spotted Immortal 9606 | -2/Protoforge | Spotted Immortal 9654 | -2/Protoforge | Spotted Striker 9656 | -2/Protoforge | Found UFD Drillbomb 9657 | -2/Protoforge | Spotted Striker 9720 | -2/Protoforge | Lost 5 allies 9738 | -2/Protoforge | Spotted Executioner 9756 | -2/Protoforge | Spotted Striker 9756 | -2/Protoforge | Spotted Executioner 9790 | -2/Protoforge | Discovered new exit (range 20) 9792 | -2/Protoforge | Spotted Striker 9792 | -2/Protoforge | Spotted Executioner 9792 | -2/Protoforge | Spotted Striker 9793 | -2/Protoforge | Spotted Executioner 9793 | -2/Protoforge | Destroyed by Executioner with Helical Railgun Last Messages --------------- 09705_ Acquired 10 matter. 09706_ ZF&R5SPMME|A00A4:P|YCQAGZQ 09715_ 0bP_NET: Lugger 173 inbound, all units not involved in other operations escort to target. 09724_ System corrupted: Heat flow error (+224). 09790_ EXIT=FOUND 09792_ C-30 ARC bursts open, deploying its payload. 09792_ G-73 Enforcer unfolds itself. 09792_ H-88 Terminator unfolds itself. 09792_ S-43 Plague unfolds itself. 09792_ H-88 Terminator unfolds itself. 09792_ E-15 Imp unfolds itself. 09792_ C-30 ARC bursts open, deploying its payload. 09792_ G-73 Enforcer unfolds itself. 09792_ P-80 Master unfolds itself. 09792_ Slug penetrates Wall. 09793_ Penetrated by Slug. 09793_ Slug penetrates G-73 Enforcer. 09793_ G-73 Enforcer suffers critical hit (Destroy). 09793_ G-73 Enforcer destroyed. Map ----- +----------------------------------------------------+ | ??????????????????????????????????????????????? | | ??????????????????????????????????????????????? | | ??????????????????????????????????????????????? | | ??????????????????????????????????????????????? | | ??????????????????????????????????????????????? | | ??????????????????????????????????????????????? | | ??????????????????????????????????????????????? | | ??????????????????????????????????????????????? | | ??????????????????????????????????????????????? | | ??????????????????????????????????????????????? | | ??????????????????????????????????????????????? | | ??????????????????????????????????????????????? | | ??????????????????????????????????????????????? | | ???????????????????????????????????????????#### | | ???????????????????????????????????????????#### | | ???????????????????????????????????????????##?? | | ???????????????????????????????????????????##?? | | ???????????????????????????????????????????##?? | | ???????????????????????????????????????????##?? | | #################??????????????????????????##?? | | #################??????????????????????????##?? | | #?????????#????##??????????????????????????##?? | | #?????????#????##############################?? | | # " "" #Eghb#############################"?? | | # """ + E%s pK # "### | | #?????????# heg K @%[ #"""" "## | | #?????????# ! ;"""" "## | | #?????????# % #"""" ### | | #?????????######################g #"""" ### | | ##############################"" #"""" ### | | ############????????????????##T """"" ### | | ????????????????????????????#### #& ### | | ????????????????????????????#### # ## | | ????????????????????############ # ## | | ????????????????????############ # ## | | ????????????????????##?????????# # ## | | ????????????????????##?????????# # ## | | ????????????????????##?????????# ### ###### | | ????????????????????##?????????+ =%= | | ????????????????????##?????????# % | | ????????????????????##?????????# " | | ????????????????????##?????????# | | ????????????????????##?????????########## """ | | ???????????############################ # """ | | ???????????######################????#### """ | | ???????????## ##???????????????## " """ | | ???????????## """"" ##???????????????## # | | ???????###?## ""T"" ##??#####????????###" """ | | ???????# #?## ##?##########????###" """ | | ??###### #?## ######T######????###"& """ | +----------------------------------------------------+ Best States ------------- Heat Dissipation 101 Energy Generation 58 Energy Capacity 1650 Matter Stores 300 Matter Capacity 300 Sight Range 24 Robot Scan Range 20 Terrain Scan Density 1210 ECM Strength 1 Cloak Strength 4 Power Amplification 40 Additional Mass Support 16 Armor Coverage 400 Core Shielding 20 Propulsion Shielding 90 Weapon Shielding 90 Evasion (%) 82 Targeting Accuracy 23 Melee Accuracy 8 Target Analysis 15 Core Analysis 12 Armor Integrity Analysis 50 Recoil Reduction 3 Kinecelleration 66 Salvage Targeting 2 Offensive Hacking 32 Defensive Hacking 26 Item Schematics ----------------- Adv. Recoil Stabilizer | -7/Recycling | Hacked Disruptor Cannon | -5/Factory | Hacked Particle Accelerator | -4/Factory | Scanalyzed Com. Particle Reactor | -3/Testing | Archive Cld. Antigrav System | -3/Testing | Archive Exp. Power Shielding | -3/Testing | Archive Stealth Drone Bay | -3/Testing | Archive Shock Maul | -3/Testing | Archive Adv. Myomer Leg | -3/Testing | Archive Mni. Fusion Reactor | -3/Testing | Archive Adv. Micro-nuke Launcher | -3/Testing | Archive Robot Schematics ------------------ K-01 Serf | -7/Recycling | Hacked T-07 Excavator | -3/Testing | Archive E-15 Imp | -3/Testing | Archive Fabricated ------------ Nothing Repaired ---------- Hvy. EM Shotgun | 23% | -7/Factory Cld. Pulse Rifle | 11% | -7/Factory Alien Tech Used ----------------- Sigix Broadsword Terrabomb Phase Armor Core Stripper Phase Redirector Subatomic Replicator Achievements -------------- None Challenges ------------ None Game ------ Seed MediumReflectiveShotgun Manual? 0 Play Time 02:17:25 Cumulative 1130.2 hours Start 2025.06.27 @ 13:56:47 End 2025.06.27 @ 16:20:58 Sessions 1 Manual Loads 0 Difficulty Rogue Special Mode None Game No. 1386 Rogue 1102 Adventurer 124 Explorer 160 Win Type - Total 50 Types 36/0/8/4/1/0/0/1/0/0 Lore% 92 Gallery% 87 Achievement% 81 Wizard Run 0 Options --------- Layout 0 ASCII 0 Keyboard 1 Movement Numpad Keybinds 0 Fullscreen 2 Font 18/X11 Map View 76x50 Zoom Use 0% Tactical HUD 1 Map Filters NONE Filters NONE Steam 1 RUN: d005c7af-86e5-4526-abe7-0096e788575c